bitfinex-derivatives/quotes_SOLF0:USTF0_20260126
["timestamp","ask_amount","ask_price","bid_price","bid_amount"]
[1769395889675,3.23354104,122.19,122.12,7.58327059]
[1769395889868,3.23354104,122.17,122.12,7.58327059]
[1769395890069,3.23354104,122.17,122.12,3.48923033]
[1769395893471,3.23354104,122.17,122.1,11.47374026]
[1769395893770,3.23354104,122.17,122.1,14.80490094]
[1769395894572,3.5872111,122.15,122.08,10.71246068]
[1769395894870,14.743,122.25,122.08,10.71246068]
[1769395894871,7.68125136,122.14,122.08,3.33116068]
[1769395896170,7.68125136,122.14,122.06,7.42520094]
[1769395896171,3.5872111,122.13,122.06,7.42520094]
[1769395896369,3.5872111,122.12,122.06,3.33116068]
[1769395899273,4.09404026,122.11,122.06,3.33116068]
[1769395902880,15.06055136,122.12,122.06,3.33116068]
[1769395906580,10.9654111,122.14,122.07,7.42520094]
[1769395907281,10.9654111,122.14,122.08,3.33116068]
[1769395907582,15.05945136,122.14,122.08,3.33116068]
[1769395909677,10.9654111,122.14,122.08,3.33116068]
[1769395909884,10.9654111,122.14,122.08,7.42520094]
[1769395910074,114.7519,122.16,122.03,1.42407006]
[1769395910075,15.05815136,122.16,122.1,3.33116068]
[1769395910272,7.68125136,122.16,122.1,3.33116068]
[1769395910981,3.5872111,122.15,122.1,3.33116068]
[1769395911886,10.9645111,122.15,122.1,3.33116068]
[1769395912887,10.9645111,122.15,122.08,7.42520094]
[1769395913586,10.9645111,122.15,122.09,4.09404026]
[1769395914386,10.9645111,122.15,122.09,7.42520094]
[1769395914687,3.5872111,122.15,122.1,3.33116068]
[1769395915487,3.5872111,122.15,122.1,7.42520094]
[1769395916285,3.5872111,122.15,122.1,3.33116068]
[1769395921278,3.5872111,122.15,122.1,7.43085336]
[1769395923684,3.5872111,122.15,122.1,3.33116068]
[1769395924282,3.49509717,122.14,122.09,4.09969268]
[1769395924591,3.49509717,122.13,122.08,3.31743058]
[1769395926096,3.49509717,122.15,122.1,7.41712326]
[1769395926486,3.49509717,122.15,122.1,3.31743058]
[1769395926689,3.49509717,122.15,122.05,114.8476]
[1769395926690,3.49509717,122.15,122.09,4.09969268]
[1769395927695,3.49509717,122.15,122.09,7.41712326]
[1769395928498,3.49509717,122.17,122.11,7.41712326]
[1769395929396,3.49509717,122.17,122.12,3.31743058]
[1769395929593,3.49509717,122.17,122.12,7.41712326]
[1769395931387,3.49509717,122.17,122.11,4.09969268]
[1769395931594,3.49509717,122.16,122.1,3.31743058]
[1769395934399,3.49509717,122.16,122.1,7.41712326]
[1769395934793,7.3761,122.17,122.11,7.41712326]
[1769395934993,7.3761,122.17,122.12,7.41712326]
[1769395935292,10.87119717,122.17,122.12,7.41712326]
[1769395937100,3.49509717,122.17,122.12,7.41712326]
[1769395937301,10.86652595,122.19,122.12,7.41712326]
[1769395937500,3.49152595,122.18,122.12,7.41712326]
[1769395941904,7.375,122.19,122.13,3.47401099]
[1769395942116,3.49152595,122.2,122.15,3.47401099]
[1769395944008,3.49152595,122.2,122.14,4.09969268]
[1769395944206,3.49152595,122.2,122.13,7.57370367]
[1769395944509,3.49152595,122.2,122.14,4.09969268]
[1769395945007,3.49152595,122.19,122.13,7.57370367]
[1769395945602,3.49152595,122.19,122.14,7.57370367]
[1769395946310,3.49152595,122.19,122.14,3.47401099]
[1769395947707,3.49152595,122.18,122.12,4.09969268]
[1769395948710,3.49152595,122.18,122.11,3.47401099]
[1769395948912,10.86712595,122.18,122.11,3.47401099]
[1769395951610,3.49152595,122.17,122.11,3.47401099]
[1769395953817,14.96741863,122.17,122.11,3.47401099]
[1769395954812,10.86772595,122.17,122.11,3.47401099]
[1769395956720,3.49152595,122.17,122.12,7.43057387]
[1769395957717,3.49152595,122.17,122.12,3.33088119]
[1769395963222,7.5731852,122.19,122.13,7.43057387]
[1769395963415,7.3746,122.2,122.14,3.33088119]
[1769395963616,10.84809252,122.2,122.14,3.33088119]
[1769395964913,3.47349252,122.18,122.12,4.09969268]
[1769395965119,3.47349252,122.17,122.11,3.33088119]
[1769395965728,3.47349252,122.16,122.09,87.89088119]
[1769395965926,3.47349252,122.15,122.09,91.99057387]
[1769395966120,3.47349252,122.15,122.09,7.43057387]
[1769395966424,3.47349252,122.14,122.09,3.33088119]
[1769395967521,14.9498852,122.16,122.09,3.33088119]
[1769395967927,14.9498852,122.16,122.09,7.43057387]
[1769395968227,10.85019252,122.16,122.09,7.43057387]
[1769395968425,10.85019252,122.16,122.1,7.43057387]
[1769395968725,10.85019252,122.16,122.11,4.09969268]
[1769395968726,3.47349252,122.16,122.11,4.09969268]
[1769395969120,10.84929252,122.18,122.12,7.43057387]
[1769395972623,3.47349252,122.18,122.12,7.43057387]
[1769395976129,3.47349252,122.17,122.1,7.43057387]
[1769395976324,3.47349252,122.16,122.1,3.33088119]
[1769395980229,3.47349252,122.15,122.1,3.33088119]
[1769395980830,3.47349252,122.15,122.08,14.81168948]
[1769395981028,3.47349252,122.15,122.09,3.33088119]
[1769395982942,3.47349252,122.15,122.09,7.43078948]
[1769395983639,7.3767,122.16,122.11,3.33646123]
[1769395983841,7.3767,122.16,122.11,7.43636952]
[1769395984128,7.3767,122.16,122.11,3.33646123]
[1769395985041,3.43915557,122.11,122.04,3.33646123]
[1769395985530,3.43915557,122.11,122.04,7.43636952]
[1769395985734,3.43915557,122.11,122.06,7.43636952]
[1769395985933,0.05334525,122.09,122.06,3.33646123]
[1769395986131,3.43915557,122.13,122.06,7.43636952]
[1769395986333,3.43915557,122.13,122.06,7.49257929]
[1769395987338,3.43915557,122.12,122.06,0.05620977]
[1769395987540,7.53906386,122.09,122.06,0.05620977]
[1769395987942,3.43915557,122.09,122.03,3.33646123]
[1769395988142,7.53906386,122.11,122.04,3.33646123]
[1769395988640,7.53906386,122.05,121.99,3.33646123]
[1769395989040,3.43915557,122.03,121.97,3.33646123]
[1769395989242,7.53906386,122.02,121.94,3.33646123]
[1769395989442,7.53906386,122.02,121.95,7.43636952]
[1769395990344,7.53906386,122.02,121.96,3.33646123]
[1769395990739,3.43915557,122.02,121.96,3.33646123]
[1769395991141,3.43915557,122.02,121.93,4.76298306]
[1769395991343,7.53906386,122.02,121.96,3.33646123]
[1769395991741,4.09990829,122.01,121.96,3.33646123]
[1769395991943,3.43915557,122.02,121.96,3.33646123]
[1769395992139,3.43915557,121.98,121.91,3.33646123]
[1769395992447,7.53906386,122.0,121.93,3.33646123]
[1769395992651,3.43915557,122.0,121.93,7.43636952]
[1769395992947,122.2682,122.02,121.95,3.33646123]
[1769395992948,4.09990829,122.02,121.95,3.33646123]
[1769395993150,7.53906386,122.02,121.95,3.33646123]
[1769395993448,7.53906386,122.02,121.94,4.09990829]
[1769395993449,7.53906386,122.02,121.96,3.33646123]
[1769395994348,7.53906386,122.02,121.94,7.43636952]
[1769395995650,7.53906386,122.02,121.95,3.33646123]
[1769395996451,7.53906386,122.02,121.95,7.43636952]
[1769395998644,15.03211145,122.04,121.96,3.49688766]
[1769395998948,3.54790316,122.04,121.98,7.59679595]
[1769395999448,15.03061145,122.06,121.99,3.49688766]
[1769396000351,7.64781145,122.06,121.99,3.49688766]
[1769396000552,3.54790316,122.06,121.99,7.59679595]
[1769396000747,3.54790316,122.06,121.95,7.3889]
[1769396000952,3.54790316,122.02,121.96,3.49688766]
[1769396002346,7.64781145,122.04,121.97,3.49688766]
[1769396002546,7.64781145,122.03,121.97,3.49688766]
[1769396009455,3.54790316,122.01,121.95,7.59679595]
[1769396009653,7.64781145,122.0,121.93,3.49688766]
[1769396009853,4.09990829,121.98,121.93,3.49688766]
[1769396010054,7.64781145,121.98,121.91,3.49688766]
[1769396010252,3.54790316,121.98,121.91,3.49688766]
[1769396010451,10.93620316,121.97,121.91,3.49688766]
[1769396010652,4.09990829,121.96,121.91,3.49688766]
[1769396010956,7.64781145,121.99,121.92,7.59679595]
[1769396011950,15.03481145,121.99,121.92,7.59679595]
[1769396013355,3.54790316,121.99,121.93,7.82773225]
[1769396013659,3.54790316,121.99,121.94,4.09990829]
[1769396014356,15.19746423,122.01,121.95,3.72782396]
[1769396014553,3.71165594,122.01,121.95,3.72782396]
[1769396014755,7.81156423,122.01,121.95,3.72782396]
[1769396015157,7.81156423,121.99,121.93,3.72782396]
[1769396015352,3.71165594,121.97,121.91,7.82773225]
[1769396015558,3.71165594,121.97,121.91,3.72782396]
[1769396015757,7.81156423,121.97,121.91,3.72782396]
[1769396016865,3.71165594,121.95,121.88,7.82773225]
[1769396017065,3.71165594,121.94,121.88,7.82773225]
[1769396017461,3.71165594,121.96,121.9,3.72782396]
[1769396020965,7.81156423,121.96,121.9,3.72782396]
[1769396021163,7.81156423,121.95,121.88,3.72782396]
[1769396022162,7.81156423,121.94,121.88,3.72782396]
[1769396022668,3.71165594,121.94,121.88,3.72782396]
[1769396023267,3.71165594,121.94,121.88,7.82773225]
[1769396023570,3.71165594,121.94,121.89,7.82773225]
[1769396024066,11.48830829,121.97,121.91,3.72782396]
[1769396024371,15.19996423,121.97,121.91,3.72782396]
[1769396025373,15.19996423,121.97,121.88,15.22093225]
[1769396025374,7.81156423,121.95,121.88,15.22093225]
[1769396025567,3.71165594,121.95,121.88,15.22093225]
[1769396025869,3.71165594,121.95,121.88,11.12102396]
[1769396026167,3.71165594,121.95,121.88,15.22093225]
[1769396026867,3.71165594,121.95,121.89,3.72782396]
[1769396028968,3.71165594,121.95,121.88,11.49310829]
[1769396029270,3.71165594,121.95,121.88,15.22093225]
[1769396029471,3.71165594,121.95,121.89,3.72782396]
[1769396029675,3.71165594,121.95,121.9,3.72782396]
[1769396029975,3.71165594,121.97,121.92,3.72782396]
[1769396031471,4.09990829,121.98,121.92,3.72782396]
[1769396032273,3.71165594,121.96,121.9,3.72782396]
[1769396032480,4.09990829,121.95,121.9,3.72782396]
[1769396034378,3.71165594,121.96,121.9,3.72782396]
[1769396036279,7.81156423,121.95,121.88,3.72782396]
[1769396037478,3.71165594,121.95,121.88,3.72782396]
[1769396037683,7.81156423,121.95,121.88,3.72782396]
[1769396038382,7.81156423,121.95,121.89,3.72782396]
[1769396039380,3.71165594,121.95,121.9,3.72782396]
[1769396040287,7.82473591,121.97,121.9,3.72782396]
[1769396041888,7.82473591,121.99,121.92,3.72782396]
[1769396042982,3.71165594,121.99,121.92,15.23180393]
[1769396043992,3.71165594,121.99,121.92,11.11872396]
[1769396044185,3.71165594,121.99,121.93,3.73446973]
[1769396045489,3.71165594,121.99,121.93,7.8475497]
[1769396045991,7.82473591,121.99,121.93,3.73446973]
[1769396047797,3.71165594,121.99,121.93,7.8475497]
[1769396048397,3.71165594,121.99,121.93,3.73446973]
[1769396053104,3.71165594,121.99,121.92,11.50397997]
[1769396053308,3.72596038,121.98,121.92,4.11307997]
[1769396053604,3.72596038,121.98,121.92,7.8475497]
[1769396055403,7.83904035,121.98,121.92,3.73446973]
[1769396056899,15.22664035,121.98,121.92,3.73446973]
[1769396059618,4.0513934,121.97,121.92,3.73446973]
[1769396065319,4.0513934,121.96,121.89,3.99578888]
[1769396065613,4.0513934,121.94,121.88,11.38878888]
[1769396066721,8.16447337,121.94,121.88,11.38878888]
[1769396067219,4.0513934,121.93,121.88,3.99578888]
[1769396069320,4.0513934,121.93,121.85,3.99578888]
[1769396069321,4.11307997,121.91,121.85,3.99578888]
[1769396069621,8.16447337,121.92,121.85,3.99578888]
[1769396069822,4.0513934,121.94,121.86,3.99578888]
[1769396070017,4.0513934,121.94,121.88,8.10886885]
[1769396071621,4.0513934,121.94,121.89,3.99578888]
[1769396072519,4.0513934,121.94,121.89,8.10886885]
[1769396075618,11.50127997,121.97,121.9,3.92270216]
[1769396075619,3.94234517,121.96,121.9,3.92270216]
[1769396075825,3.94234517,121.96,121.9,8.03578213]
[1769396076721,3.94234517,121.96,121.91,3.92270216]
[1769396077822,3.94234517,121.98,121.92,8.03578213]
[1769396078416,3.94234517,121.98,121.92,3.92270216]
[1769396078720,3.94234517,121.98,121.92,8.03578213]
[1769396079324,3.94234517,121.98,121.92,3.92270216]
[1769396080523,3.94234517,121.98,121.91,11.50457997]
[1769396080724,3.94234517,121.98,121.91,15.42728213]
[1769396081520,3.94234517,121.98,121.92,3.92270216]
[1769396083028,3.94234517,121.98,121.92,8.03578213]
[1769396084228,3.94234517,121.98,121.93,4.11307997]
[1769396084426,3.94234517,121.98,121.93,8.03578213]
[1769396086026,114.884,122.02,121.95,8.03578213]
[1769396086027,3.94234517,122.02,121.95,8.03578213]
[1769396086620,3.94234517,122.02,121.96,3.92270216]
[1769396087528,3.94234517,122.02,121.96,8.03578213]
[1769396089232,3.94234517,122.02,121.98,0.0580812]
[1769396089427,3.94234517,122.04,121.98,8.09386333]
[1769396089629,8.05542514,122.04,121.98,3.98078336]
[1769396090031,3.94234517,122.03,121.98,3.98078336]
[1769396093935,8.05542514,122.05,121.98,3.98078336]
[1769396094237,8.05542514,122.05,121.99,8.03578213]
[1769396095125,8.05542514,122.05,122.01,0.05584895]
[1769396097232,3.94234517,122.05,122.01,0.05584895]
[1769396098329,8.05542514,122.07,122.01,3.97855111]
[1769396098529,3.94234517,122.07,122.02,3.92270216]
[1769396101028,3.94234517,122.09,122.03,4.1047623]
[1769396102140,3.94234517,122.09,122.05,0.0603871]
[1769396103343,11.32334517,122.09,122.05,0.0603871]
[1769396103835,0.06120655,122.08,122.02,8.02746446]
[1769396105139,0.06120655,122.08,122.04,0.05601796]
[1769396107440,4.06464085,122.08,122.04,0.05601796]
[1769396108236,0.06120655,122.08,122.04,4.01792501]
[1769396108533,0.06120655,122.08,122.04,8.12268731]
[1769396110642,0.06120655,122.08,122.05,3.96190705]
[1769396110840,159.5822343,122.13,122.06,8.06666935]
[1769396111042,11.3822343,122.13,122.07,3.96190705]
[1769396112041,4.0034343,122.13,122.07,3.96190705]
[1769396112241,4.0034343,122.13,122.09,0.05938563]
[1769396120851,11.3821343,122.13,122.09,0.05938563]
[1769396121950,11.31184081,122.15,122.09,4.18445048]
[1769396122455,3.93454081,122.14,122.09,4.18445048]
[1769396123250,4.1047623,122.16,122.09,4.18445048]
[1769396123251,8.03930311,122.16,122.09,4.18445048]
[1769396123453,3.93454081,122.15,122.09,4.18445048]
[1769396127457,3.93454081,122.15,122.1,4.12506485]
[1769396128559,3.93454081,122.15,122.1,8.22982715]
[1769396129060,3.93454081,122.15,122.1,4.12506485]
[1769396129459,11.31184081,122.15,122.1,4.12506485]
[1769396131163,3.93454081,122.15,122.1,4.12506485]
[1769396132264,11.31084081,122.17,122.11,4.12506485]
[1769396133268,11.31084081,122.17,122.13,0.05689579]
[1769396134070,4.01503733,122.15,122.09,4.01380395]
[1769396134267,8.11979963,122.15,122.09,4.01380395]
[1769396135170,4.01503733,122.15,122.09,4.01380395]
[1769396140471,4.01503733,122.14,122.09,4.01380395]
[1769396140771,8.11979963,122.14,122.09,4.01380395]
[1769396140972,8.11979963,122.11,122.04,4.1047623]
[1769396141363,8.11979963,122.11,122.04,11.4882623]
[1769396141565,4.1047623,122.1,122.04,7.3835]
[1769396143073,8.11979963,122.11,122.05,4.01380395]
[1769396144675,4.01503733,122.09,122.03,4.01380395]
[1769396144878,4.1047623,122.08,122.03,4.01380395]
[1769396145074,4.01503733,122.09,122.03,4.01380395]
[1769396146777,4.1047623,122.1,122.03,4.01380395]
[1769396146973,8.11979963,122.1,122.04,4.01380395]
[1769396148272,4.01503733,122.1,122.04,4.01380395]
[1769396149874,4.01503733,122.1,122.05,4.01380395]
[1769396150076,4.1047623,122.11,122.05,4.01380395]
[1769396150379,4.01503733,122.12,122.07,4.01380395]
[1769396153482,8.11979963,122.14,122.07,4.01380395]
[1769396155383,4.01503733,122.13,122.07,4.01380395]
[1769396156386,8.11979963,122.12,122.05,8.11856625]
[1769396156581,8.11979963,122.12,122.05,4.01380395]
[1769396159589,8.11745325,122.12,122.05,4.01380395]
[1769396160784,4.01503733,122.12,122.06,4.01380395]
[1769396161580,4.01503733,122.12,122.06,8.11621987]
[1769396162186,4.01503733,122.12,122.07,4.01380395]
[1769396163795,8.43138337,122.1,122.05,4.24808653]
[1769396165295,4.10241592,122.11,122.05,4.24808653]
[1769396165685,8.43138337,122.11,122.05,4.24808653]
[1769396167401,4.32896745,122.09,122.03,4.24808653]
[1769396171402,8.43138337,122.09,122.03,4.24808653]
[1769396177305,4.03972513,122.11,122.05,4.37492189]
[1769396177800,4.03972513,122.1,122.05,4.37492189]
[1769396181600,4.03972513,122.09,122.03,15.86153781]
[1769396182100,4.03972513,122.09,122.04,4.37492189]
[1769396183304,4.03972513,122.09,122.03,11.48661592]
[1769396183498,4.03972513,122.09,122.03,7.3842]
[1769396183898,4.03972513,122.09,122.02,4.37492189]
[1769396184105,8.14214105,122.08,122.02,4.37492189]
[1769396184500,4.03972513,122.07,122.01,11.48761592]
[1769396184707,4.03972513,122.07,122.01,15.86253781]
[1769396185102,4.03972513,122.07,122.02,4.37492189]
[1769396186810,4.03972513,122.09,122.03,8.47733781]
[1769396187211,4.03972513,122.09,122.04,4.37492189]
[1769396192810,8.14214105,122.09,122.04,4.37492189]
[1769396193033,8.14214105,122.08,122.02,4.37492189]
[1769396194123,4.03972513,122.08,122.02,4.37492189]
[1769396194523,4.10241592,122.09,122.03,4.21768153]
[1769396194728,8.28245785,122.1,122.04,4.21768153]
[1769396196631,4.18004193,122.1,122.04,4.21768153]
[1769396202233,4.18004193,122.12,122.06,4.21768153]
[1769396203226,4.18004193,122.11,122.05,4.10241592]
[1769396203432,4.18004193,122.11,122.03,8.32009745]
[1769396203939,4.18004193,122.07,122.02,4.21768153]
[1769396207533,4.18004193,122.07,122.0,4.21768153]
[1769396207830,4.18004193,122.05,122.0,4.21768153]
[1769396210033,4.18004193,122.04,121.98,4.21768153]
[1769396210733,8.28245785,122.04,121.98,4.21768153]
[1769396213134,4.18004193,122.03,121.96,4.21768153]
[1769396213436,4.18004193,122.03,121.95,513.6139013]
[1769396213437,4.18004193,122.03,121.98,4.21768153]
[1769396218232,4.18004193,122.03,121.98,8.32009745]
[1769396220239,4.18004193,122.05,121.99,4.21768153]
[1769396220845,4.18004193,122.05,122.0,4.21768153]
[1769396221847,4.10611737,122.07,122.01,4.21768153]
[1769396221848,4.18004193,122.07,122.01,4.21768153]
[1769396226745,4.18004193,122.07,122.02,8.23859718]
[1769396226941,4.18004193,122.07,122.02,4.13247981]
[1769396227340,4.18004193,122.07,122.0,15.62459718]
[1769396228044,8.2861593,122.07,122.01,4.13247981]
[1769396228944,4.16369786,122.06,122.01,4.13247981]
[1769396229137,8.26981523,122.03,121.97,4.13247981]
[1769396229443,8.26981523,122.02,121.95,330.30740136]
[1769396229647,8.26981523,122.02,121.95,326.20128399]
[1769396230946,8.26981523,122.02,121.96,4.13247981]
[1769396231748,4.16369786,122.01,121.96,4.13247981]
[1769396232049,4.16369786,122.0,121.95,322.06880418]
[1769396232742,8.26981523,122.0,121.95,322.06880418]
[1769396232943,4.16369786,121.99,121.95,322.06880418]
[1769396233143,8.26981523,121.99,121.95,322.06880418]
[1769396234149,8.26981523,121.98,121.92,4.13247981]
[1769396234850,4.16369786,121.98,121.92,4.13247981]
[1769396239645,8.26115267,121.97,121.9,210.09417597]
[1769396239841,4.10611737,121.96,121.9,205.9880586]
[1769396240044,8.26115267,121.96,121.9,205.9880586]
[1769396243158,4.1550353,121.96,121.9,205.9880586]
[1769396243956,4.1550353,121.96,121.9,210.09417597]
[1769396247156,8.26115267,121.99,121.92,4.4480586]
[1769396247456,4.1550353,121.99,121.93,4.4480586]
[1769396248754,4.1550353,121.99,121.93,8.55417597]
[1769396249264,4.1550353,121.99,121.93,4.4480586]
[1769396249947,4.1550353,121.99,121.93,8.55417597]
[1769396250152,4.1550353,122.01,121.94,8.55417597]
[1769396251960,4.1550353,122.0,121.94,8.55417597]
[1769396252861,4.1550353,122.0,121.94,4.4480586]
[1769396255867,4.06040867,122.02,121.96,4.32435504]
[1769396257569,4.06040867,122.02,121.96,8.43047241]
[1769396258767,11.44560867,122.02,121.96,8.43047241]
[1769396259269,15.55172604,122.02,121.96,4.32435504]
[1769396261562,4.06040867,122.02,121.97,4.32435504]
[1769396263560,15.54942604,122.06,121.99,8.43047241]
[1769396263763,4.06040867,122.05,121.99,8.43047241]
[1769396265572,4.06040867,122.05,122.0,4.32435504]
[1769396265872,4.06040867,122.05,122.0,8.43047241]
[1769396268572,7.3829,122.06,122.01,4.10611737]
[1769396270370,7.3829,122.06,122.01,8.43047241]
[1769396270771,4.06040867,122.07,122.01,8.43047241]
[1769396274476,8.16652604,122.07,122.01,4.32435504]
[1769396274976,4.06040867,122.06,122.01,4.32435504]
[1769396280574,8.16652604,122.06,122.01,4.32435504]
[1769396281279,4.06040867,122.05,121.99,8.43047241]
[1769396281481,4.10611737,122.03,121.99,4.32435504]
[1769396281675,0.73644796,121.99,121.92,4.32435504]
[1769396281877,4.84256533,121.98,121.92,4.32435504]
[1769396282272,4.10611737,122.0,121.93,4.32435504]
[1769396282477,151.9654,122.02,121.92,4.10611737]
[1769396282478,4.85083853,122.02,121.95,4.32435504]
[1769396282990,0.74472116,121.99,121.89,4.32435504]
[1769396283175,4.85083853,121.98,121.92,4.36259074]
[1769396283377,0.74472116,121.98,121.93,4.36259074]
[1769396284082,4.86881836,122.0,121.93,4.36259074]
[1769396284388,4.11080471,121.99,121.93,4.36259074]
[1769396286183,4.86881836,122.0,121.93,4.36259074]
[1769396288285,4.11080471,121.99,121.93,4.36259074]
[1769396288477,4.90823587,121.99,121.93,4.36259074]
[1769396290288,8.19069561,122.01,121.94,4.36259074]
[1769396290483,4.91580032,122.01,121.94,4.36259074]
[1769396290687,4.91580032,122.01,121.95,4.36259074]
[1769396291689,0.80499561,122.01,121.95,4.36259074]
[1769396291897,4.11080471,122.02,121.96,4.36259074]
[1769396292282,4.93069535,122.03,121.96,4.36259074]
[1769396292694,4.93069535,122.03,121.97,4.36259074]
[1769396292988,4.93801784,122.05,121.98,4.36259074]
[1769396293592,4.93801784,122.05,121.99,4.36259074]
[1769396294192,0.82721313,122.05,121.99,4.36259074]
[1769396295690,4.93801784,122.05,121.99,4.36259074]
[1769396298999,4.11080471,122.06,121.99,4.36259074]
[1769396301592,5.00328679,122.06,121.99,4.36259074]
[1769396303310,5.00328679,122.06,122.0,4.23269417]
[1769396303811,4.11080471,122.05,122.0,4.23269417]
[1769396304207,5.00328679,122.06,122.0,4.23269417]
[1769396304409,4.11080471,122.05,122.0,4.23269417]
[1769396306314,0.89248208,122.06,122.0,4.23269417]
[1769396306514,4.11080471,122.05,122.0,4.23269417]
[1769396308315,4.11080471,122.06,122.0,4.23269417]
[1769396309208,4.11080471,122.06,122.0,8.34349888]
[1769396309416,4.11080471,122.07,122.01,4.23269417]
[1769396311809,5.06512215,122.07,122.01,4.23269417]
[1769396312004,4.11080471,122.06,122.01,4.23269417]
[1769396314114,5.06512215,122.07,122.01,4.23269417]
[1769396314315,0.95431744,122.07,122.01,8.34349888]
[1769396314516,0.95431744,122.07,122.02,4.45683036]
[1769396320220,11.49240471,122.08,122.02,4.45683036]
[1769396320820,7.3816,122.08,122.02,4.45683036]
[1769396321321,8.39078145,122.08,122.02,4.45683036]
[1769396323124,12.50158616,122.08,122.02,4.45683036]
[1769396324923,8.40987976,122.1,122.04,4.45683036]
[1769396325320,12.52068447,122.1,122.04,4.45683036]
[1769396325722,8.40987976,122.1,122.04,4.45683036]
[1769396325920,1.02957976,122.1,122.04,4.45683036]
[1769396326223,1.02957976,122.1,122.04,8.56763507]
[1769396326524,1.02957976,122.1,122.05,4.45683036]
[1769396327218,4.11080471,122.11,122.05,4.45683036]
[1769396327823,12.52954435,122.12,122.05,4.45683036]
[1769396328024,12.52954435,122.12,122.06,4.45683036]
[1769396328424,1.03933964,122.12,122.06,4.45683036]
[1769396329322,1.03933964,122.12,122.07,4.45683036]
[1769396329525,12.54241985,122.14,122.07,4.45683036]
[1769396329822,12.54241985,122.14,122.08,4.45683036]
[1769396330326,1.05361514,122.13,122.08,4.45683036]
[1769396332428,5.16441985,122.13,122.08,4.45683036]
[1769396333225,12.54301985,122.13,122.08,4.45683036]
[1769396333420,5.17815429,122.09,122.03,4.45683036]
[1769396333625,1.07187809,122.05,121.99,4.45683036]
[1769396333825,4.11080471,122.04,121.99,4.45683036]
[1769396334721,12.5661828,122.05,121.99,4.45683036]
[1769396335432,4.11080471,122.04,121.99,4.45683036]
[1769396342446,4.11080471,122.03,121.99,4.45683036]
[1769396343049,4.11080471,122.04,121.99,4.45683036]
[1769396343244,4.11080471,122.05,121.99,4.45683036]
[1769396345550,4.10742015,122.05,121.99,4.45683036]
[1769396345848,5.23745567,122.05,121.99,4.45683036]
[1769396349252,4.10742015,122.04,121.99,4.45683036]
[1769396350446,4.10742015,122.06,122.01,4.44974109]
[1769396350845,5.25587872,122.07,122.01,4.44974109]
[1769396355152,5.26977245,122.06,122.01,4.44974109]
[1769396359159,4.10742015,122.06,122.01,4.44974109]
[1769396359756,5.28596748,122.07,122.01,4.44974109]
[1769396361455,1.17854733,122.07,122.01,4.44974109]
[1769396362858,5.28596748,122.07,122.01,4.44974109]
[1769396365954,1.17854733,122.07,122.01,4.44974109]
[1769396367157,1.17854733,122.07,122.01,8.55716124]
[1769396369063,1.17854733,122.07,122.01,4.44974109]
[1769396370764,1.17854733,122.07,122.01,8.55716124]
[1769396373071,1.17854733,122.07,122.02,4.21353766]
[1769396377966,5.34721562,122.06,122.0,4.2406204]
[1769396378268,1.23979547,122.06,122.0,4.2406204]
[1769396381368,5.34721562,122.06,122.0,4.2406204]
[1769396382072,1.24966689,122.05,122.0,4.2406204]
[1769396382259,5.35708704,122.05,122.0,4.2406204]
[1769396388166,7.3828,122.06,122.0,4.2406204]
[1769396388372,5.37114732,122.07,122.0,4.2406204]
[1769396388876,5.37344784,122.06,122.0,4.2406204]
[1769396389069,1.26602769,122.05,122.0,4.2406204]
[1769396389272,5.37344784,122.05,122.0,4.2406204]
[1769396389670,148.0,122.12,121.95,431.78371666]
[1769396389671,1.26824561,122.03,121.98,4.2406204]
[1769396389866,5.37566576,122.02,121.96,4.2406204]
[1769396390772,1.26824561,122.02,121.96,4.2406204]
[1769396390970,1.2704393,122.06,121.98,4.2406204]
[1769396391168,1.2704393,122.06,122.0,4.2406204]
[1769396391374,4.10742015,122.04,121.98,4.2406204]
[1769396391573,4.10742015,122.03,121.98,4.2406204]
[1769396393076,5.37785945,122.04,121.98,4.2406204]
[1769396396076,1.2704393,122.04,121.98,4.2406204]
[1769396396274,5.37785945,122.04,121.98,4.2406204]
[1769396396673,1.2704393,122.04,121.98,4.2406204]
[1769396398175,5.37785945,122.04,121.98,4.2406204]
[1769396399777,1.28922666,122.03,121.98,4.2406204]
[1769396399977,5.39664681,122.03,121.98,4.2406204]
[1769396400379,1.28922666,122.03,121.98,4.2406204]
[1769396400879,5.39861785,122.05,121.98,4.2406204]
[1769396401269,5.39861785,122.05,121.99,4.2406204]
[1769396401476,1.2911977,122.05,121.99,4.2406204]
[1769396403279,1.29492225,122.07,122.01,4.3839719]
[1769396403780,1.29682545,122.06,122.01,4.3839719]
[1769396405379,1.29870924,122.05,121.99,4.3839719]
[1769396405582,5.40617236,122.05,121.99,4.3839719]
[1769396405775,1.30057545,122.08,122.02,4.3839719]
[1769396405973,1.30057545,122.08,122.03,8.49143502]
[1769396406285,5.40803857,122.1,122.04,4.3839719]
[1769396406668,8.68117545,122.1,122.04,4.3839719]
[1769396406868,1.30057545,122.1,122.04,4.3839719]
[1769396407078,1.30057545,122.1,122.05,4.3839719]
[1769396407378,8.68174607,122.12,122.06,4.3839719]
[1769396407580,1.30234607,122.12,122.06,8.49143502]
[1769396407780,1.30234607,122.12,122.07,4.10746312]
[1769396408182,1.30410751,122.11,122.06,4.3839719]
[1769396408385,5.41157063,122.1,122.04,4.3839719]